[Event "Qatar Masters 2024"]
[Site "Doha"]
[Date "2024.12.03"]
[Round "1.18"]
[White "Salem, A.R. Saleh"]
[Black "Aradhya, Garg"]
[Result "1/2-1/2"]
[Annotator "TA"]
[ECO "D17"]
[WhiteElo "2622"]
[BlackElo "2365"]
[PlyCount "278"]
[EventDate "2024.11.24"]
[EventType "swiss"]
[EventCountry "QAT"]
[SourceTitle "playchess.com"]
[Source "ChessBase"]
[SourceQuality "1"]
[TimeControl "40/5400+30:1800+30"]

{[%evp 15,278,22,2,12,32,41,41,34,37,39,41,26,27,26,33,25,38,0,0,0,0,0,0,0,22,0,16,4,39,17,91,0,53,43,50,52,46,51,78,68,70,62,60,72,83,81,77,0,64,65,80,81,81,77,74,75,190,184,225,179,256,81,77,69,77,48,49,42,97,97,97,70,64,65,63,63,86,86,86,86,86,86,86,86,86,86,86,86,86,86,86,86,86,86,86,86,86,86,86,86,86,86,86,86,86,86,86,86,86,86,86,86,86,86,86,70,70,70,70,0,70,29,29,29,29,29,29,29,29,29,29,29,29,29,29,29,29,29,29,29,29,29,41,41,41,0,29,0,68,0,68,68,68,68,68,68,68,68,68,68,68,20,20,0,68,68,68,68,68,0,68,68,68,68,68,68,68,68,68,68,68,68,68,43,57,35,43,35,35,35,35,35,35,35,35,35,35,35,35,35,35,35,35,35,35,35,35,35,35,35,35,35,35,35,35,0,35,0,11,11,35,0,14,14,21,21,67,11,11,11,11,11,65,11,11,11,56,11,11,16,11,16,35,11,35,11,35,11,35,11,11,0,11,0,0,0,0,0,0,0,0,0,35,0,11]} 1. d4 {[%emt 0:00:03]} d5 {[%emt 0:00:02]} 2. c4 {[%emt 0:00:12]} c6 {[%emt 0:00:02]} 3. Nf3 {[%emt 0:00:31]} Nf6 {[%emt 0:00:05]} 4. Nc3 {[%emt 0:00:17]} dxc4 {[%emt 0:00:06]} 5. a4 {[%emt 0:00:07]} Bf5 {[%emt 0:00:05]} 6. Ne5 {[%emt 0:00:19]} e6 {[%emt 0:00:07]} 7. f3 {[%emt 0:00:28]} Bb4 {[%emt 0:00:10]} 8. Nxc4 {[%emt 0:00:20]} O-O {[%emt 0:00:54]} 9. Kf2 {[%emt 0:00:36]} h6 {[%emt 0:00:53]} 10. e4 {[%emt 0:00:25]} Bh7 {[%emt 0:00:07]} 11. Be3 {[%emt 0:00:50] White is slightly better.} Nfd7 {[%emt 0:03:10]} 12. Qb3 {[%emt 0:01:28]} a5 {[%emt 0:05:59]} 13. Be2 {[%emt 0:16:19]} Na6 {[%emt 0:02:54]} 14. Rhd1 {[%emt 0:01:37]} f5 {[%emt 0:01:10]} 15. Kg1 {[%emt 0:01:17]} fxe4 {[%emt 0:00:37]} 16. fxe4 {[%emt 0:11:37]} Kh8 {[%emt 0:09:51]} 17. e5 {[%emt 0:14:26]} Nc7 {[%emt 0:10:20]} 18. Nd6 {[%emt 0:09:53]} Nd5 {[%emt 0:05:46]} 19. Nxd5 {[%emt 0:06:40]} (19. Nxb7 $2 Qb8 20. Nxd5 cxd5 (20... exd5 21. e6 $15) 21. Nxa5 Bxa5 $19 (21... Rxa5 22. Rf1 $17)) 19... exd5 {[%emt 0:00:06]} 20. Rf1 {[%emt 0:04:06]} (20. Nxb7 Qe7 (20... Qb8 $2 21. e6 $19) 21. Bd3 Bg8 $17 (21... Nxe5 22. dxe5 Bg8 23. Nxa5 $15)) 20... Qe7 {[%emt 0:18:18] Prevents Nf7+.} 21. Bg4 {[%emt 0:00:51]} (21. Nxb7 $2 Rfb8 22. Rac1 Qe6 $19 (22... Rxb7 23. Rxc6 Bg8 24. Qc2 $17)) 21... Nb6 {[%emt 0:17:52][%cal Bd7b6,Bb6c4,Bc4e3][%mdl 32]} 22. Nf5 {[%emt 0:06:18]} Qe8 {[%emt 0:02:20] [#]} (22... Qc7 $11) 23. Rf2 {[%emt 0:09:14] White is more active.} (23. Nxh6 $1 $16 {Rxf8+ is the strong threat.} gxh6 24. Bxh6) 23... Qg6 {[%emt 0:10:28]} (23... Nc4 $11) 24. Bh3 $14 {[%emt 0:00:02]} Nc4 {[%emt 0:00:25]} 25. Raf1 {[%emt 0:00:14]} Nxe3 $1 {[%emt 0:00:54]} 26. Qxe3 {[%emt 0:00:05]} Rae8 {[%emt 0:01:26]} 27. Rf3 {[%emt 0:01:50]} Qh5 {[%emt 0:01:36]} 28. Nd6 {[%emt 0:02:06]} Rxf3 {[%emt 0:03:57]} (28... Bxd6 29. exd6 Rxf3 (29... Rxe3 $2 30. Rxf8+ Bg8 31. d7 $18) 30. Qxf3 Qxf3 31. Rxf3 $16) 29. Qxf3 {[%emt 0:00:17]} Qxf3 {[%emt 0:00:09]} 30. Rxf3 {[%emt 0:00:08]} Rb8 {[%emt 0:00:33]} 31. Nf7+ {[%emt 0:08:04]} Kg8 {[%emt 0:00:03]} 32. Be6 {[%emt 0:00:09]} Be4 {[%emt 0:02:50]} 33. Ng5+ {[%emt 0:00:05]} (33. Nxh6+ Kh7 34. Nf7 Bxf3 35. Ng5+ Kg6 36. Nxf3 Re8 $17) 33... Kh8 {[%emt 0:00:05]} 34. Nxe4 {[%emt 0:00:06]} dxe4 $16 {[%emt 0:00:04][%mdl 4096] Endgame. KRB-KRB} 35. Rf7 {[%emt 0:00:10]} Bd2 {[%emt 0:03:26]} (35... Rd8 $16 {was worth a try.}) 36. Kf2 $18 {[%emt 0:00:37]} Bc1 {[%emt 0:00:32]} 37. b3 {[%emt 0:01:59]} Rd8 {[%emt 0:00:05]} (37... g6 {was called for.} 38. g3 h5) 38. Rd7 $2 {[%emt 0:04:41]} (38. Rxb7 $18 {Strongly threatening Bf7.} Rxd4 39. Bf5) 38... Rxd7 $16 {[%emt 0:00:34]} 39. Bxd7 {[%emt 0:00:02] KB-KB} Kg8 {[%emt 0:00:15]} 40. Bc8 {[%emt 0:00:32]} b6 {[%emt 0:00:29]} 41. Bf5 {[%emt 0:07:29]} e3+ {[%emt 0:07:07]} (41... c5 $1 $14) 42. Ke2 {[%emt 0:00:07]} Kf8 {[%emt 0:01:42]} 43. Bd7 {[%emt 0:01:33]} Bb2 $1 {[%emt 0:01:26]} 44. Kxe3 {[%emt 0:00:07]} (44. Bxc6 Bxd4 45. g3 Bxe5 $17) 44... c5 {[%emt 0:00:04]} 45. dxc5 {[%emt 0:00:06]} bxc5 {[%emt 0:00:07]} 46. Ke4 {[%emt 0:00:03]} Ke7 {[%emt 0:00:21]} 47. Bf5 {[%emt 0:00:01]} Bc3 {[%emt 0:00:48]} 48. Kd5 {[%emt 0:00:05]} Bb4 {[%emt 0:00:33]} 49. g4 {[%emt 0:00:07]} Bc3 {[%emt 0:01:44]} 50. h3 {[%emt 0:00:12][%cal Bh2h3,Bh3h4,Bh4h5][%mdl 32]} (50. Kxc5 $6 Bxe5 51. Be4 Bd6+ 52. Kb5 Bb4 $11) 50... Bb2 {[%emt 0:01:58]} 51. h4 {[%emt 0:00:20]} (51. Kxc5 Bxe5 52. h4 Bc3 $11) 51... Bc3 {[%emt 0:00:29]} 52. h5 {[%emt 0:00:08]} (52. Kxc5 $6 Bxe5 53. h5 Bd6+ 54. Kd5 Bb4 $11) 52... Bb2 {[%emt 0:00:43]} 53. Bd3 {[%emt 0:00:34]} (53. Kxc5 $6 Bxe5 54. Be4 Bc3 $11) 53... Bc3 {[%emt 0:01:34]} 54. Bf1 {[%emt 0:00:07]} (54. Kxc5 Bxe5 55. b4 Bd6+ 56. Kd5 Bxb4 $11) 54... Bb2 {[%emt 0:00:25]} 55. Be2 {[%emt 0:00:07]} (55. Kxc5 $6 Bxe5 56. Bg2 Bc3 $11) 55... Bc3 {[%emt 0:00:16]} 56. Bd1 {[%emt 0:00:05]} (56. Kxc5 Bxe5 57. Kc4 Bd6 $11) 56... Bb2 {[%emt 0:00:21]} 57. Bc2 {[%emt 0:00:08]} (57. Kxc5 Bxe5 58. Kc4 Bd6 $11) 57... Bc3 {[%emt 0:00:12]} 58. Bd3 {[%emt 0:00:07]} (58. Kxc5 $6 Bxe5 59. Kc4 Bd6 $11) 58... Bb2 {[%emt 0:00:14]} 59. Ba6 {[%emt 0:00:05]} (59. Kxc5 Bxe5 60. Kc4 Bd6 $11) 59... Bc3 {[%emt 0:00:20]} 60. Bb5 {[%emt 0:00:12]} (60. Kxc5 $6 Bxe5 61. Kc4 Bd6 $11) 60... Bb2 {[%emt 0:00:35]} 61. Bc4 {[%emt 0:00:12]} (61. Kxc5 $6 Bxe5 62. Kc4 Bd6 $11) 61... Bc3 {[%emt 0:00:34]} 62. Be2 {[%emt 0:00:17]} (62. Kxc5 $6 Bxe5 63. Be2 Bc3 $11) 62... Bb2 {[%emt 0:01:27]} 63. Bf1 {[%emt 0:02:07]} (63. Kxc5 Bxe5 64. Kc4 Bd6 $11) 63... Bc3 {[%emt 0:00:24]} 64. Bc4 {[%emt 0:00:05]} (64. Kxc5 Bxe5 65. Kc4 Bd6 $11) 64... Bb2 {[%emt 0:00:22]} 65. e6 {[%emt 0:00:07]} ({Don't play} 65. Kxc5 $6 Bxe5 66. Be2 Bc3 $11) 65... Ba3 {[%emt 0:00:11]} 66. Ke5 {[%emt 0:00:35]} Bb2+ {[%emt 0:00:16]} 67. Kd5 {[%emt 0:00:29]} Ba3 {[%emt 0:00:06]} 68. Kc6 {[%emt 0:00:05]} Bb4 {[%emt 0:00:28]} 69. Kc7 {[%emt 0:00:08]} Bc3 {[%emt 0:00:58]} 70. Kb6 {[%emt 0:00:10]} Kd6 {[%emt 0:00:58]} 71. Kb5 {[%emt 0:00:07]} Bb4 {[%emt 0:00:11] [#]} 72. Bd5 $1 {[%emt 0:00:28]} Bc3 {[%emt 0:00:13] [#]} (72... Kxd5 $2 {is the wrong capture.} 73. e7 $18) 73. Kb6 $1 {[%emt 0:00:53]} Bb4 {[%emt 0:00:20]} (73... Be1 74. Bc4) 74. Kb7 {[%emt 0:00:06]} Bc3 {[%emt 0:00:22]} (74... Kxd5 $2 {perishes.} 75. e7 $18) 75. Bc4 {[%emt 0:00:05]} Bb4 {[%emt 0:00:24]} 76. Kc8 {[%emt 0:00:07]} Ke7 {[%emt 0:00:08]} 77. Bd5 {[%emt 0:00:05]} Bc3 {[%emt 0:00:13]} 78. Kc7 {[%emt 0:00:02]} Bb4 {[%emt 0:00:45]} 79. Kc6 {[%emt 0:00:06]} Ba3 {[%emt 0:01:40]} 80. Bc4 {[%emt 0:00:17]} Bb4 {[%emt 0:00:50]} 81. Kd5 {[%emt 0:00:05]} Ba3 {[%emt 0:00:28]} 82. Ke5 {[%emt 0:00:01]} Bb2+ $1 {[%emt 0:00:22]} 83. Kf5 {[%emt 0:00:02]} Bc3 {[%emt 0:00:41]} 84. g5 {[%emt 0:00:14]} hxg5 {[%emt 0:00:07]} 85. Kxg5 {[%emt 0:00:01]} Bb2 {[%emt 0:00:20]} 86. Kf5 {[%emt 0:00:20]} Bc3 {[%emt 0:00:28]} 87. Ke4 {[%emt 0:00:07]} Kd6 {[%emt 0:00:34]} 88. Kd3 {[%emt 0:00:08]} (88. Bd5 $14) 88... Bf6 $11 {[%emt 0:00:21]} 89. Ke4 {[%emt 0:00:21]} (89. Ke2 $11 {was preferrable.}) 89... Bc3 $14 {[%emt 0:00:08]} 90. Ke3 {[%emt 0:00:14]} Bf6 {[%emt 0:00:17]} 91. Kf4 $1 {[%emt 0:00:18]} Bc3 {[%emt 0:00:19]} 92. Kf5 {[%emt 0:00:12]} (92. Kg4 $14) 92... Bb2 {[%emt 0:00:34]} ({Better is} 92... Ke7 $11) 93. Be2 {[%emt 0:00:01]} Bc3 {[%emt 0:00:23]} 94. Bf3 {[%emt 0:00:06]} Bb2 {[%emt 0:00:16]} 95. Bg4 {[%emt 0:00:05]} Bc3 {[%emt 0:00:21]} 96. Kg6 {[%emt 0:00:08] Threatening mate with Kf7.} Ke7 {[%emt 0:00:07]} 97. Kg5 {[%emt 0:00:01]} Bd2+ {[%emt 0:00:37]} 98. Kf5 {[%emt 0:00:09]} Bc3 {[%emt 0:00:13]} 99. Ke4 {[%emt 0:00:02]} Kd6 {[%emt 0:00:20]} 100. Kd3 {[%emt 0:00:01]} Bb4 {[%emt 0:00:16]} 101. Kc4 {[%emt 0:00:03]} Be1 {[%emt 0:00:37]} 102. Kb5 {[%emt 0:00:12]} Bd2 {[%emt 0:00:26]} 103. Kb6 {[%emt 0:00:01]} Be1 {[%emt 0:00:45]} 104. Bf5 {[%emt 0:00:05]} Bd2 {[%emt 0:00:22]} 105. Kb7 {[%emt 0:00:05]} Bb4 {[%emt 0:00:34]} 106. Kc8 {[%emt 0:00:05] aiming for Kd8.} Ke7 {[%emt 0:00:19]} 107. Kc7 {[%emt 0:00:01]} Bc3 {[%emt 0:00:49]} 108. Kc6 {[%emt 0:00:05]} Bb4 {[%emt 0:00:05]} 109. Bg4 {[%emt 0:00:05]} Ba3 {[%emt 0:00:47]} 110. Bh3 {[%emt 0:00:07]} (110. Kb5 $5 Bb4 $8 111. Kc6 $11) 110... Bb4 {[%emt 0:00:20]} 111. Kd5 {[%emt 0:00:01]} Ba3 {[%emt 0:00:24]} 112. Bf1 {[%emt 0:00:07]} Bb4 {[%emt 0:00:43]} 113. Bc4 {[%emt 0:00:06]} Ba3 $1 {[%emt 0:00:08]} 114. Ke5 {[%emt 0:00:10]} Bb2+ {[%emt 0:00:09]} 115. Kf5 {[%emt 0:00:09]} Bc3 {[%emt 0:00:31]} 116. Ke4 {[%emt 0:00:01]} Kd6 {[%emt 0:00:16]} 117. Kf4 {[%emt 0:00:02]} Bb2 {[%emt 0:00:50]} 118. Kg5 {[%emt 0:00:15]} Bc3 {[%emt 0:00:15]} 119. Kg6 {[%emt 0:00:02] Kf7 would kill now.} Ke7 {[%emt 0:00:09]} 120. Bd5 {[%emt 0:00:12]} Bd4 {[%emt 0:00:10]} (120... Be5 $1 $11 {should be considered.}) 121. Kf5 {[%emt 0:00:45]} ({White should try} 121. h6 $14 gxh6 122. Kxh6) 121... Bc3 $11 {[%emt 0:00:42]} 122. Bc6 {[%emt 0:00:06]} Bd4 {[%emt 0:00:16]} 123. Bd7 {[%emt 0:00:02]} Bc3 {[%emt 0:00:15]} (123... Be3 $1 $11) 124. Ke4 {[%emt 0:00:08]} (124. Kg6 $1 $14) 124... Kd6 {[%emt 0:00:15]} 125. Bc8 {[%emt 0:00:04]} Bb4 {[%emt 0:00:28]} 126. Kd3 {[%emt 0:00:04]} Ba3 {[%emt 0:00:26]} 127. Kc3 {[%emt 0:00:05]} Bb4+ {[%emt 0:00:18]} 128. Kc4 {[%emt 0:00:01]} Be1 {[%emt 0:00:28]} 129. Kb5 {[%emt 0:00:01]} Bc3 {[%emt 0:00:39]} 130. Kb6 {[%emt 0:00:02]} Be1 {[%emt 0:00:23]} 131. Bd7 {[%emt 0:00:06]} Bc3 {[%emt 0:00:18]} 132. Kb7 {[%emt 0:00:07]} Be1 {[%emt 0:00:50]} 133. Kc8 {[%emt 0:00:08] Threatens to win with Kd8.} Bh4 {[%emt 0:00:22]} 134. Kb8 {[%emt 0:00:05]} Bg3 {[%emt 0:00:52]} 135. Kb7 {[%emt 0:00:04]} Bf2 {[%emt 0:00:28]} 136. Ka6 {[%emt 0:00:05]} Be1 {[%emt 0:00:06]} 137. Kb5 {[%emt 0:00:04]} Bd2 {[%emt 0:00:31]} 138. Bc8 {[%emt 0:00:01][%cal Oe6e7]} Be1 {[%emt 0:00:17]} 139. Kc4 {[%emt 0:00:06]} Bb4 {[%emt 0:00:22] Weighted Error Value: White=0.12 (very precise) /Black=0.13 (very precise) .  Missed win:     	White=1     	---        Mistake:       	White=6     	Black=8      Inaccurate:     	White=7     	Black=6      OK:         	White=49    	Black=54     Best:        	White=2     	Black=13     Strong:       	White=1     	Black=4} 1/2-1/2

[Event "Qatar Masters 2024"]
[Site "Doha"]
[Date "2024.12.03"]
[Round "1.19"]
[White "Balajayeva, Khanim"]
[Black "Pranav Vijay"]
[Result "1/2-1/2"]
[Annotator "TA"]
[ECO "C60"]
[WhiteElo "2362"]
[BlackElo "2252"]
[PlyCount "94"]
[EventDate "2024.11.24"]
[EventType "swiss"]
[EventCountry "QAT"]
[SourceTitle "playchess.com"]
[Source "ChessBase"]
[SourceQuality "1"]
[TimeControl "40/5400+30:1800+30"]

{[%evp 11,94,19,20,23,31,23,33,27,34,25,47,16,38,20,27,27,43,15,25,8,13,7,19,8,31,16,5,3,52,32,40,26,152,107,114,118,149,165,149,139,168,193,201,78,199,148,137,109,689,642,677,683,785,590,506,423,572,502,441,64,453,460,435,417,429,416,490,331,714,0,0,0,0,0,756,201,222,211,364,368,329,0,282,0,280]} 1. e4 {[%emt 0:00:04]} e5 {[%emt 0:00:10]} 2. Nf3 {[%emt 0:00:09]} Nc6 {[%emt 0:00:08]} 3. Bb5 {[%emt 0:00:13]} Nge7 {[%emt 0:00:27]} 4. Nc3 {[%emt 0:00:53]} Ng6 {[%emt 0:00:13]} 5. h4 {[%emt 0:00:54]} Nd4 {[%emt 0:00:43]} 6. h5 {[%emt 0:03:32]} Nf4 {[%emt 0:00:24]} 7. Nxd4 {[%emt 0:01:19]} exd4 {[%emt 0:00:08]} 8. Qf3 {[%emt 0:07:58]} Bd6 {[%emt 0:00:26]} 9. Ne2 {[%emt 0:00:08]} Nxe2 {[%emt 0:07:18]} 10. Bxe2 {[%emt 0:00:53]} h6 {[%emt 0:09:38]} 11. a3 {[%emt 0:01:51]} c6 {[%emt 0:07:05]} 12. d3 {[%emt 0:01:29]} Be5 {[%emt 0:06:53]} 13. Bd2 {[%emt 0:06:50]} a5 {[%emt 0:03:22]} 14. g3 {[%emt 0:18:48]} Qb6 {[%emt 0:07:58]} 15. Rb1 {[%emt 0:13:47]} d6 {[%emt 0:07:39]} 16. O-O {[%emt 0:04:27]} Be6 {[%emt 0:07:43]} 17. c4 {[%emt 0:04:04]} a4 {[%emt 0:08:52]} 18. Qg2 {[%emt 0:02:29]} Bf6 {[%emt 0:01:28]} 19. Rfc1 {[%emt 0:03:13]} g5 {[%emt 0:03:52]} (19... O-O $11) 20. hxg6 $14 {[%emt 0:09:02]} fxg6 {[%emt 0:00:02]} 21. f4 {[%emt 0:02:04]} O-O-O {[%emt 0:03:21]} (21... h5 $11 {remains equal.}) 22. Bd1 {[%emt 0:03:12]} g5 {[%emt 0:03:04]} 23. f5 {[%emt 0:01:42]} (23. Bxa4 gxf4 24. Bxf4 Qa7 $11) 23... Bf7 {[%emt 0:00:49]} 24. Bxa4 {[%emt 0:04:16]} h5 {[%emt 0:00:39]} 25. b4 {[%emt 0:00:09]} Qa7 {[%emt 0:06:10]} 26. Bd1 {[%emt 0:04:50]} Be5 {[%emt 0:08:42]} 27. Be1 {[%emt 0:00:52]} (27. Bxg5 $6 Rdg8 28. Qd2 Bxg3 $16) (27. a4 $18 {is more deadly.}) 27... g4 {[%emt 0:01:26]} (27... h4 $16) 28. c5 {[%emt 0:01:47]} (28. a4 $18) 28... d5 $16 {[%emt 0:02:43]} 29. b5 {[%emt 0:00:55]} Qxa3 $2 {[%emt 0:00:48][%mdl 8192]} (29... dxe4 $16 30. bxc6 (30. dxe4 d3 $14) (30. Qxe4 Rde8 $17) 30... bxc6) 30. bxc6 $18 {[%emt 0:00:23]} bxc6 {[%emt 0:00:01]} 31. Qe2 {[%emt 0:00:25]} Qa7 {[%emt 0:01:20]} 32. Rb6 {[%emt 0:00:44]} dxe4 {[%emt 0:01:13]} 33. Rxc6+ {[%emt 0:01:42]} Bc7 {[%emt 0:00:06]} 34. dxe4 {[%emt 0:00:57]} d3 {[%emt 0:00:32]} 35. Qd2 $2 {[%emt 0:00:06]} (35. Qb2 $18) 35... Qb7 $2 {[%emt 0:00:53][%mdl 8192]} (35... Rhe8 $14) 36. Rf6 $18 {[%emt 0:01:21]} Rh7 {[%emt 0:01:23]} 37. c6 {[%emt 0:00:47]} Qa6 {[%emt 0:00:15]} 38. Rb1 {[%emt 0:00:36]} Bc4 {[%emt 0:00:57]} 39. Bf2 {[%emt 0:00:29]} Be5 $2 {[%emt 0:00:34]} (39... h4) 40. Rh6 $2 {[%emt 0:00:26]} (40. Qb4 $18) 40... Rxh6 $11 {[%emt 0:00:34]} 41. Qxh6 {[%emt 0:30:11]} Qa2 $1 {[%emt 0:04:44]} 42. Rc1 {[%emt 0:00:00]} (42. Rb7 $5 Qa1 $8 43. c7 (43. Qd2 Bc3 $11) 43... Qxd1+ (43... Bxc7 $2 44. Qc6 $18) 44. Kh2 Bxg3+ (44... Bxc7 45. Qc6 $18) 45. Bxg3 Qe2+ 46. Kg1 Qd1+ 47. Kh2 $11) 42... h4 $2 {[%emt 0:08:16][%mdl 8192]} (42... d2 $11 43. Rc2 Qb1 44. Rxd2 Rxd2 45. Qxd2 Qd3) 43. Qh7 $2 {[%emt 0:00:00]} (43. gxh4 $2 g3 $19) ({Inferior is} 43. Bxg4 hxg3 44. Be3 Rg8 $11) (43. Qxh4 {[%cal Oh4e7] Threatening mate with Qe7!.} Re8 44. Bxg4 (44. Qxg4 Rg8 $18)) 43... Bf7 $18 {[%emt 0:02:54]} 44. Qxh4 {[%emt 0:00:00]} (44. gxh4 $2 {too greedy.} g3 $19 (44... Rh8 $2 45. Qxh8+ Bxh8 46. Bxg4 $19)) 44... Qa3 $2 {[%emt 0:04:22]} (44... d2 45. Qe7 Bc7) 45. Rb1 $18 {[%emt 0:00:00]} Qa2 {[%emt 0:07:03]} 46. Rc1 {[%emt 0:00:00]} Qa3 $1 {[%emt 0:00:33]} 47. Rb1 {[%emt 0:00:03]} Qa2 {[%emt 0:00:07]} 1/2-1/2

[Event "Qatar Masters 2024"]
[Site "Doha"]
[Date "2024.12.03"]
[Round "1.20"]
[White "Paravyan, David"]
[Black "Dixit, Nikhil"]
[Result "1/2-1/2"]
[Annotator "TA"]
[ECO "B09"]
[WhiteElo "2620"]
[BlackElo "2361"]
[PlyCount "108"]
[EventDate "2024.11.24"]
[EventType "swiss"]
[EventCountry "QAT"]
[SourceTitle "playchess.com"]
[Source "ChessBase"]
[SourceQuality "1"]
[TimeControl "40/5400+30:1800+30"]

{[%evp 23,108,81,89,67,87,85,79,80,155,58,66,59,56,32,27,28,24,34,25,-10,-18,-18,-19,-50,-55,-35,-57,-55,-47,-53,-51,-54,-53,-62,-56,-98,0,0,0,0,18,18,20,22,20,20,77,22,18,18,20,20,20,20,20,20,20,20,20,20,24,24,85,40,42,36,36,36,36,36,36,20,20,4,12,0,0,-8,0,0,0,-8,0,0,0,0,0]} 1. e4 {[%emt 0:00:04]} g6 {[%emt 0:00:06]} 2. d4 {[%emt 0:00:08]} Bg7 {[%emt 0:00:10]} 3. f4 {[%emt 0:02:25]} c5 {[%emt 0:01:19]} 4. d5 {[%emt 0:02:52]} d6 {[%emt 0:01:24]} 5. Nc3 {[%emt 0:05:56]} Na6 {[%emt 0:05:56]} 6. Nf3 {[%emt 0:12:26]} Nc7 {[%emt 0:08:50]} 7. Bd3 {[%emt 0:03:55]} Nf6 {[%emt 0:03:49]} 8. O-O {[%emt 0:01:55]} O-O {[%emt 0:00:09]} 9. a4 {[%emt 0:00:59]} Rb8 {[%emt 0:08:48] B09: Pirc Defence: Austrian Attack.} 10. Qe1 {[%emt 0:03:18]} a6 {[%emt 0:16:14]} 11. a5 {[%emt 0:01:53]} b5 {[%emt 0:03:17]} 12. axb6 {[%emt 0:00:09]} Rxb6 {[%emt 0:00:27]} 13. Kh1 {[%emt 0:17:13]} Re8 {[%emt 0:08:40]} 14. f5 $146 {[%emt 0:09:21]} ({Predecessor:} 14. Nd2 e6 15. Nc4 Rb4 16. e5 Rxc4 17. Bxc4 exd5 18. Bb3 d4 19. Na4 Bf5 20. Nb6 dxe5 21. fxe5 {½-½ De Clercq,J (2050)-Kleinsorgen,H (2130) IECG CA.2004.0.00137 email}) 14... Bd7 {[%emt 0:06:11]} 15. fxg6 {[%emt 0:08:06]} hxg6 {[%emt 0:02:42]} ({Black should play} 15... fxg6 16. Qh4 Nh5) 16. e5 {[%emt 0:00:46]} (16. Ng5 $16) 16... dxe5 $1 $14 {[%emt 0:06:27]} (16... Nfxd5 $2 17. Nxd5 Nxd5 18. Ng5 dxe5 19. Nxf7 $18 (19. Rxa6 Rf6 $15) (19. Rxf7 Bb5 $16)) 17. Nxe5 {[%emt 0:00:20]} Bb5 $1 {[%emt 0:08:01]} 18. Nxb5 {[%emt 0:11:20]} (18. Bc4 {simplifies} Bxc4 19. Nxc4 Rb4 20. Ne5) 18... axb5 {[%emt 0:01:48]} 19. Nxf7 {[%emt 0:01:03]} Kxf7 {[%emt 0:01:11]} 20. Qg3 {[%emt 0:00:47]} Rh8 {[%emt 0:01:31]} 21. d6 {[%emt 0:04:03]} (21. Qxg6+ Kg8 22. c3 c4 $15) 21... Rxd6 {[%emt 0:01:20]} (21... Qxd6 $2 22. Bf4 (22. Qxg6+ Kg8 $17) 22... Qc6 (22... e5 $2 23. Bxe5 Qd5 24. Bxc7 $18) 23. Bxg6+ (23. Bxc7 Ra6 $18) 23... Kg8 24. Bxc7 $18) 22. Bxg6+ {[%emt 0:00:04]} (22. Qxg6+ Kg8 23. Be3 (23. Bf4 Rd4 $17) 23... c4 $17) 22... Kg8 {[%emt 0:01:56]} 23. Bf4 {[%emt 0:00:04]} Nh5 {[%emt 0:05:30]} 24. Bxh5 $1 {[%emt 0:11:30]} Rxh5 {[%emt 0:00:15]} 25. Bxd6 {[%emt 0:00:35]} Qxd6 {[%emt 0:01:02]} 26. Rf8+ {[%emt 0:01:46]} Kh7 {[%emt 0:03:38]} 27. Qxd6 {[%emt 0:00:21]} exd6 {[%emt 0:00:02]} 28. Rf7 {[%emt 0:00:39]} Ne6 {[%emt 0:01:22]} 29. Re1 {[%emt 0:00:04]} Re5 {[%emt 0:01:35]} (29... Kg6 $17 30. Rd7 Re5 31. Rxe5 Bxe5) 30. Rxe5 $11 {[%emt 0:00:22]} dxe5 {[%emt 0:00:03]} 31. Re7 {[%emt 0:00:34]} Nd4 {[%emt 0:00:54]} 32. c3 {[%emt 0:00:18]} Nc2 {[%emt 0:01:15]} 33. Kg1 {[%emt 0:00:31]} b4 {[%emt 0:00:21]} 34. Kf2 {[%emt 0:00:32]} c4 {[%emt 0:00:46]} (34... e4 $11) 35. Rc7 {[%emt 0:01:10]} (35. cxb4 $16 {Black must now prevent b5.} Nxb4 36. h4) 35... bxc3 $1 $11 {[%emt 0:00:23]} 36. bxc3 {[%emt 0:00:04]} Na3 {[%emt 0:00:11]} 37. g4 {[%emt 0:00:54]} e4 {[%emt 0:00:29]} 38. h4 {[%emt 0:00:30]} Kg8 {[%emt 0:00:50]} 39. g5 {[%emt 0:00:29]} Bxc3 {[%emt 0:00:18]} 40. h5 {[%emt 0:00:18]} Bd4+ {[%emt 0:00:36]} 41. Ke2 {[%emt 0:02:44]} Nb5 {[%emt 0:13:53]} (41... c3 {is interesting.} 42. h6 Nb5 43. Rd7 Bc5) 42. Rxc4 {[%emt 0:02:44]} Bg7 {[%emt 0:03:41]} (42... Kg7 $11 {remains equal.}) 43. Ke3 {[%emt 0:08:46]} ({Of course not} 43. Rxe4 $6 Nc3+ 44. Kf3 Nxe4 45. Kxe4 Kh7 $11) 43... Nd6 {[%emt 0:02:31]} 44. Rc6 {[%emt 0:04:57]} Be5 $1 {[%emt 0:05:46]} 45. Rc5 {[%emt 0:01:37]} Bh2 {[%emt 0:00:47]} 46. Rc2 {[%emt 0:03:20]} Be5 {[%emt 0:00:32]} 47. Ra2 {[%emt 0:07:25]} Kf7 {[%emt 0:00:47]} 48. g6+ {[%emt 0:01:21]} Ke6 {[%emt 0:01:48]} 49. Ra6 {[%emt 0:00:47]} Bg7 {[%emt 0:00:42]} 50. Rc6 {[%emt 0:01:22]} Ke5 {[%emt 0:01:03]} 51. Rc5+ {[%emt 0:00:11]} Ke6 {[%emt 0:00:07]} 52. Rc6 {[%emt 0:00:57]} Ke5 {[%emt 0:00:24]} 53. Rc5+ {[%emt 0:00:03]} Ke6 {[%emt 0:00:04]} 54. Rc6 {[%emt 0:00:40]} Ke5 {[%emt 0:00:11]} 1/2-1/2